[Event "*** SCC Grand Prix: Titled Tuesday Blitz"]
[Site "Chess.com"]
[Date "2020.09.29"]
[Round "4"]
[White "kobemagic"]
[Black "Herracek"]
[Result "1/2-1/2"]
[WhiteElo "2424"]
[BlackElo "2629"]
[TimeControl "180+1"]
[EndTime "10:40:28 PDT"]
[Termination "Game drawn by stalemate"]

1. c4 {[%clk 0:03:00.9]} 1... c5 {[%clk 0:02:59]} 2. g3 {[%clk 0:03:01.2]} 2...
Nc6 {[%clk 0:02:59.3]} 3. Bg2 {[%clk 0:03:01.6]} 3... g6 {[%clk 0:02:58.9]} 4.
Nc3 {[%clk 0:03:02.1]} 4... Bg7 {[%clk 0:02:58.5]} 5. a3 {[%clk 0:03:02.8]} 5...
d6 {[%clk 0:02:57.4]} 6. Rb1 {[%clk 0:03:02.2]} 6... h5 {[%clk 0:02:50.6]} 7. h4
{[%clk 0:03:01.3]} 7... Nh6 {[%clk 0:02:50.1]} 8. Nh3 {[%clk 0:02:59]} 8... O-O
{[%clk 0:02:46]} 9. d3 {[%clk 0:02:58.6]} 9... Nf5 {[%clk 0:02:42.9]} 10. Nf4
{[%clk 0:02:58.4]} 10... Qd7 {[%clk 0:02:40.6]} 11. Bd2 {[%clk 0:02:57.4]} 11...
a5 {[%clk 0:02:40.4]} 12. O-O {[%clk 0:02:53.6]} 12... Rb8 {[%clk 0:02:40.7]}
13. Nfd5 {[%clk 0:02:39.6]} 13... e6 {[%clk 0:02:23.4]} 14. Nb6 {[%clk
0:02:38.5]} 14... Qd8 {[%clk 0:02:22.4]} 15. Nxc8 {[%clk 0:02:38.8]} 15... Qxc8
{[%clk 0:02:23.3]} 16. Ne4 {[%clk 0:02:36.6]} 16... Rd8 {[%clk 0:02:20.4]} 17.
Bc3 {[%clk 0:02:33.7]} 17... Ne5 {[%clk 0:02:12.3]} 18. Ng5 {[%clk 0:02:04.3]}
18... b6 {[%clk 0:01:59.9]} 19. Qd2 {[%clk 0:01:57.4]} 19... Nd4 {[%clk
0:01:55.5]} 20. b4 {[%clk 0:01:48.8]} 20... axb4 {[%clk 0:01:54.8]} 21. axb4
{[%clk 0:01:48.4]} 21... Ng4 {[%clk 0:01:46.9]} 22. e3 {[%clk 0:01:34.5]} 22...
Ne2+ {[%clk 0:01:42.1]} 23. Qxe2 {[%clk 0:01:34.3]} 23... Bxc3 {[%clk
0:01:42.8]} 24. bxc5 {[%clk 0:01:34.3]} 24... bxc5 {[%clk 0:01:42.1]} 25. Rxb8
{[%clk 0:01:25.6]} 25... Qxb8 {[%clk 0:01:43]} 26. Qf3 {[%clk 0:01:25]} 26...
Ne5 {[%clk 0:01:39.6]} 27. Qf4 {[%clk 0:01:15.6]} 27... Qc7 {[%clk 0:01:36.9]}
28. d4 {[%clk 0:01:02.8]} 28... cxd4 {[%clk 0:01:33.2]} 29. exd4 {[%clk
0:01:01.2]} 29... Nd3 {[%clk 0:00:55.6]} 30. Qf3 {[%clk 0:00:44.7]} 30... Bxd4
{[%clk 0:00:53.9]} 31. Qxd3 {[%clk 0:00:42.5]} 31... Bf6 {[%clk 0:00:53.9]} 32.
Ne4 {[%clk 0:00:37.3]} 32... Bg7 {[%clk 0:00:31]} 33. Rd1 {[%clk 0:00:35.6]}
33... d5 {[%clk 0:00:28.8]} 34. Ng5 {[%clk 0:00:24.6]} 34... d4 {[%clk
0:00:23.3]} 35. Rb1 {[%clk 0:00:16.1]} 35... Rb8 {[%clk 0:00:18.2]} 36. Rxb8+
{[%clk 0:00:15.4]} 36... Qxb8 {[%clk 0:00:19.1]} 37. c5 {[%clk 0:00:13.4]} 37...
Qb4 {[%clk 0:00:19.2]} 38. c6 {[%clk 0:00:12]} 38... Be5 {[%clk 0:00:16.7]} 39.
Ne4 {[%clk 0:00:09.5]} 39... Qe1+ {[%clk 0:00:16.2]} 40. Bf1 {[%clk 0:00:09.1]}
40... Kg7 {[%clk 0:00:17.1]} 41. Nc5 {[%clk 0:00:08.1]} 41... Qc1 {[%clk
0:00:16.7]} 42. Nd7 {[%clk 0:00:07.7]} 42... f6 {[%clk 0:00:10.9]} 43. Nxe5
{[%clk 0:00:07.3]} 43... fxe5 {[%clk 0:00:11.8]} 44. Qb5 {[%clk 0:00:07.2]}
44... Kf6 {[%clk 0:00:11.3]} 45. Qb7 {[%clk 0:00:05.8]} 45... e4 {[%clk
0:00:11.8]} 46. c7 {[%clk 0:00:05.6]} 46... e3 {[%clk 0:00:12.2]} 47. c8=Q
{[%clk 0:00:06]} 47... exf2+ {[%clk 0:00:12.3]} 48. Kg2 {[%clk 0:00:06.4]} 48...
Qxc8 {[%clk 0:00:10.4]} 49. Qf3+ {[%clk 0:00:06.3]} 49... Ke5 {[%clk 0:00:05.4]}
50. Qf4+ {[%clk 0:00:06.3]} 50... Kd5 {[%clk 0:00:05.2]} 51. Qxf2 {[%clk
0:00:06.1]} 51... Qc3 {[%clk 0:00:04.8]} 52. Qf3+ {[%clk 0:00:05.5]} 52... Qxf3+
{[%clk 0:00:05]} 53. Kxf3 {[%clk 0:00:06.4]} 53... Kc5 {[%clk 0:00:05.2]} 54.
Ke4 {[%clk 0:00:06.8]} 54... e5 {[%clk 0:00:05.1]} 55. Bd3 {[%clk 0:00:07.2]}
55... Kd6 {[%clk 0:00:05.2]} 56. Bc2 {[%clk 0:00:06.9]} 56... Ke6 {[%clk
0:00:04.9]} 57. Bb3+ {[%clk 0:00:06.8]} 57... Kf6 {[%clk 0:00:05.4]} 58. Bc4
{[%clk 0:00:06.7]} 58... g5 {[%clk 0:00:06.3]} 59. Be2 {[%clk 0:00:05.7]} 59...
gxh4 {[%clk 0:00:07.2]} 60. gxh4 {[%clk 0:00:06.1]} 60... Kg6 {[%clk 0:00:07.3]}
61. Kxe5 {[%clk 0:00:06.2]} 61... d3 {[%clk 0:00:08.2]} 62. Bxd3+ {[%clk
0:00:06.2]} 62... Kh6 {[%clk 0:00:09.1]} 63. Kf5 {[%clk 0:00:05.8]} 63... Kg7
{[%clk 0:00:10]} 64. Kg5 {[%clk 0:00:06.2]} 64... Kh8 {[%clk 0:00:10.9]} 65.
Kxh5 {[%clk 0:00:05.8]} 65... Kg8 {[%clk 0:00:11.8]} 66. Kh6 {[%clk 0:00:06.4]}
66... Kh8 {[%clk 0:00:12.7]} 67. h5 {[%clk 0:00:06.9]} 67... Kg8 {[%clk
0:00:13.2]} 68. Kg6 {[%clk 0:00:07.8]} 68... Kh8 {[%clk 0:00:13.6]} 69. h6
{[%clk 0:00:08.7]} 69... Kg8 {[%clk 0:00:14.5]} 70. h7+ {[%clk 0:00:09.1]} 70...
Kh8 {[%clk 0:00:15.4]} 71. Kh6 {[%clk 0:00:09.9]} 1/2-1/2

[Event "*** SCC Grand Prix: Titled Tuesday Blitz"]
[Site "Chess.com"]
[Date "2020.09.29"]
[Round "4"]
[White "StockholmMissile"]
[Black "IngOscarArdila"]
[Result "0-1"]
[WhiteElo "2383"]
[BlackElo "2164"]
[TimeControl "180+1"]
[EndTime "10:40:29 PDT"]
[Termination "IngOscarArdila won on time"]

1. e4 {[%clk 0:03:00.9]} 1... e5 {[%clk 0:01:59.7]} 2. Nf3 {[%clk 0:03:00.4]}
2... Nf6 {[%clk 0:01:59]} 3. Nc3 {[%clk 0:02:56.6]} 3... Nc6 {[%clk 0:01:58.8]}
4. Bb5 {[%clk 0:02:56.3]} 4... Bb4 {[%clk 0:01:58.1]} 5. O-O {[%clk 0:02:55.4]}
5... O-O {[%clk 0:01:57.9]} 6. d3 {[%clk 0:02:55.6]} 6... d6 {[%clk 0:01:57.6]}
7. Ne2 {[%clk 0:02:55.4]} 7... Nh5 {[%clk 0:01:56.1]} 8. Ng3 {[%clk 0:02:48.3]}
8... Nxg3 {[%clk 0:01:55.7]} 9. hxg3 {[%clk 0:02:47.7]} 9... a6 {[%clk
0:01:55.1]} 10. Bxc6 {[%clk 0:02:37.3]} 10... bxc6 {[%clk 0:01:54.4]} 11. Bd2
{[%clk 0:02:38.2]} 11... Bc5 {[%clk 0:01:54.1]} 12. Qe2 {[%clk 0:02:35.8]} 12...
f5 {[%clk 0:01:52.8]} 13. Be3 {[%clk 0:02:34.1]} 13... Bb6 {[%clk 0:01:52.1]}
14. Bxb6 {[%clk 0:02:29.1]} 14... cxb6 {[%clk 0:01:53]} 15. exf5 {[%clk
0:02:24]} 15... Bxf5 {[%clk 0:01:52.4]} 16. d4 {[%clk 0:02:22.2]} 16... e4
{[%clk 0:01:47.7]} 17. Nh4 {[%clk 0:02:09.8]} 17... d5 {[%clk 0:01:47.6]} 18.
Nxf5 {[%clk 0:02:08.2]} 18... Rxf5 {[%clk 0:01:47.4]} 19. c4 {[%clk 0:02:03.2]}
19... Qf6 {[%clk 0:01:46.1]} 20. cxd5 {[%clk 0:02:02.9]} 20... cxd5 {[%clk
0:01:44.9]} 21. Qe3 {[%clk 0:01:59.4]} 21... Rf8 {[%clk 0:01:44.3]} 22. Rac1
{[%clk 0:01:59.4]} 22... h5 {[%clk 0:01:40]} 23. Rc7 {[%clk 0:01:34.5]} 23... a5
{[%clk 0:01:39.6]} 24. Rc2 {[%clk 0:01:24.8]} 24... Kh7 {[%clk 0:01:38.8]} 25.
a3 {[%clk 0:01:19.4]} 25... Kg8 {[%clk 0:01:37.6]} 26. Rd2 {[%clk 0:01:09.5]}
26... Kh7 {[%clk 0:01:37.1]} 27. Rc1 {[%clk 0:01:09.6]} 27... Kg8 {[%clk
0:01:36.5]} 28. Rc7 {[%clk 0:01:09.5]} 28... Kh8 {[%clk 0:01:34.4]} 29. Qe2
{[%clk 0:01:07.8]} 29... h4 {[%clk 0:01:20.1]} 30. Qg4 {[%clk 0:00:55.5]} 30...
hxg3 {[%clk 0:01:15.5]} 31. Qxg3 {[%clk 0:00:49]} 31... Qh6 {[%clk 0:01:05.1]}
32. Rdc2 {[%clk 0:00:19.8]} 32... Rh5 {[%clk 0:01:04.8]} 33. Kf1 {[%clk
0:00:20.3]} 33... e3 {[%clk 0:00:59.5]} 34. f3 {[%clk 0:00:16.7]} 34... Rg5
{[%clk 0:00:53.8]} 35. Qh3 {[%clk 0:00:08.9]} 35... Qxh3 {[%clk 0:00:51.2]} 36.
gxh3 {[%clk 0:00:09.8]} 36... Rxf3+ {[%clk 0:00:51.2]} 37. Ke2 {[%clk
0:00:10.7]} 37... Rxh3 {[%clk 0:00:49.9]} 38. Rc1 {[%clk 0:00:08.6]} 38... Rg2+
{[%clk 0:00:49.3]} 39. Kd3 {[%clk 0:00:08.9]} 39... Rd2+ {[%clk 0:00:48]} 40.
Kc3 {[%clk 0:00:08.7]} 40... Rhh2 {[%clk 0:00:45.6]} 41. b4 {[%clk 0:00:05.8]}
41... axb4+ {[%clk 0:00:44]} 42. axb4 {[%clk 0:00:06.7]} 42... Rdg2 {[%clk
0:00:37.8]} 43. Re7 {[%clk 0:00:06.8]} 43... e2 {[%clk 0:00:37.4]} 44. Re1
{[%clk 0:00:06.7]} 44... Rh3+ {[%clk 0:00:36.7]} 45. Kc2 {[%clk 0:00:06.1]}
45... Ra3 {[%clk 0:00:36.5]} 46. Kb2 {[%clk 0:00:05]} 46... Rd3 {[%clk
0:00:35.9]} 47. R7xe2 {[%clk 0:00:03.5]} 47... Rxe2+ {[%clk 0:00:34.5]} 48. Rxe2
{[%clk 0:00:04.4]} 48... Rxd4 {[%clk 0:00:35.4]} 49. Kb3 {[%clk 0:00:05.3]}
49... g5 {[%clk 0:00:28.4]} 50. Re6 {[%clk 0:00:05.2]} 50... Kg7 {[%clk
0:00:26.4]} 51. Rxb6 {[%clk 0:00:05.1]} 51... g4 {[%clk 0:00:26.6]} 52. Ra6
{[%clk 0:00:04.8]} 52... g3 {[%clk 0:00:25.7]} 53. Ra2 {[%clk 0:00:04.8]} 53...
Rg4 {[%clk 0:00:24.8]} 54. Rg2 {[%clk 0:00:05]} 54... Kf6 {[%clk 0:00:23.8]} 55.
Ka4 {[%clk 0:00:01.9]} 55... Ke5 {[%clk 0:00:24.2]} 56. Kb5 {[%clk 0:00:01.1]}
56... Ke4 {[%clk 0:00:23.6]} 57. Kc5 {[%clk 0:00:01.4]} 57... d4 {[%clk
0:00:23.6]} 58. Rg1 {[%clk 0:00:01.5]} 58... d3 {[%clk 0:00:23.7]} 59. b5 {[%clk
0:00:02.4]} 59... Kf3 {[%clk 0:00:22.2]} 60. b6 {[%clk 0:00:02.6]} 60... Kf2
{[%clk 0:00:22.5]} 61. Rd1 {[%clk 0:00:02.6]} 61... g2 {[%clk 0:00:22]} 62. b7
{[%clk 0:00:03.1]} 62... Rg8 {[%clk 0:00:21.7]} 63. Rd2+ {[%clk 0:00:03.3]}
63... Kf1 {[%clk 0:00:17.4]} 64. Rd1+ {[%clk 0:00:03.6]} 64... Ke2 {[%clk
0:00:17.3]} 65. Rg1 {[%clk 0:00:03.5]} 65... Kf2 {[%clk 0:00:11.7]} 66. Rd1
{[%clk 0:00:03.1]} 66... Rd8 {[%clk 0:00:08.4]} 67. Rxd3 {[%clk 0:00:02.1]}
67... Rxd3 {[%clk 0:00:08.4]} 68. b8=Q {[%clk 0:00:01.9]} 68... g1=Q {[%clk
0:00:08.5]} 69. Qf4+ {[%clk 0:00:01.2]} 69... Rf3 {[%clk 0:00:08.4]} 70. Qc4
{[%clk 0:00:01.4]} 70... Kg2+ {[%clk 0:00:08]} 71. Kb5 {[%clk 0:00:01.2]} 71...
Qf1 {[%clk 0:00:08]} 0-1

[Event "*** SCC Grand Prix: Titled Tuesday Blitz"]
[Site "Chess.com"]
[Date "2020.09.29"]
[Round "4"]
[White "chessmaGIA"]
[Black "LubovMarkelova"]
[Result "1-0"]
[WhiteElo "1642"]
[BlackElo "2217"]
[TimeControl "180+1"]
[EndTime "10:40:29 PDT"]
[Termination "chessmaGIA won on time"]

1. d4 {[%clk 0:02:53.1]} 1... d5 {[%clk 0:02:59.9]} 2. c4 {[%clk 0:02:52.8]}
2... c6 {[%clk 0:03:00.5]} 3. Nc3 {[%clk 0:02:52.5]} 3... Nf6 {[%clk 0:03:01]}
4. Nf3 {[%clk 0:02:52.1]} 4... e6 {[%clk 0:02:59.3]} 5. Bg5 {[%clk 0:02:44.8]}
5... h6 {[%clk 0:02:56.7]} 6. Bh4 {[%clk 0:02:44.3]} 6... Nbd7 {[%clk
0:02:56.4]} 7. e3 {[%clk 0:02:43.9]} 7... Be7 {[%clk 0:02:56.5]} 8. Bd3 {[%clk
0:02:43.2]} 8... O-O {[%clk 0:02:55.4]} 9. O-O {[%clk 0:02:42.3]} 9... b6 {[%clk
0:02:53.2]} 10. cxd5 {[%clk 0:02:40.4]} 10... exd5 {[%clk 0:02:52.2]} 11. Rc1
{[%clk 0:02:37.5]} 11... Re8 {[%clk 0:02:50]} 12. Ne2 {[%clk 0:02:33]} 12... Bb7
{[%clk 0:02:46.1]} 13. Ng3 {[%clk 0:02:28.8]} 13... Ne4 {[%clk 0:02:41.3]} 14.
Bxe7 {[%clk 0:02:25.9]} 14... Qxe7 {[%clk 0:02:42]} 15. Nf5 {[%clk 0:02:26]}
15... Qf6 {[%clk 0:02:37.7]} 16. Ng3 {[%clk 0:02:16.1]} 16... c5 {[%clk
0:02:28.2]} 17. dxc5 {[%clk 0:02:13.2]} 17... Ndxc5 {[%clk 0:02:27.2]} 18. Bb1
{[%clk 0:02:07.2]} 18... Qxb2 {[%clk 0:02:23.7]} 19. Nd4 {[%clk 0:02:00.3]}
19... Nd2 {[%clk 0:02:10.4]} 20. Rc2 {[%clk 0:01:49.1]} 20... Qxb1 {[%clk
0:01:11.7]} 21. Qxb1 {[%clk 0:01:47.8]} 21... Nxb1 {[%clk 0:01:11.7]} 22. Rxb1
{[%clk 0:01:48.7]} 22... Rac8 {[%clk 0:01:08.6]} 23. Rbc1 {[%clk 0:01:47.8]}
23... Ne4 {[%clk 0:01:07]} 24. Nxe4 {[%clk 0:01:36.2]} 24... dxe4 {[%clk
0:01:04.7]} 25. Rxc8 {[%clk 0:01:35.1]} 25... Rxc8 {[%clk 0:01:04.9]} 26. Rxc8+
{[%clk 0:01:34.1]} 26... Bxc8 {[%clk 0:01:05.1]} 27. Nc6 {[%clk 0:01:33.3]}
27... Be6 {[%clk 0:01:02.2]} 28. a3 {[%clk 0:01:27.8]} 28... a5 {[%clk
0:00:59.3]} 29. Ne7+ {[%clk 0:01:25.1]} 29... Kf8 {[%clk 0:00:57.2]} 30. Nc6
{[%clk 0:01:25.1]} 30... Ke8 {[%clk 0:00:55.6]} 31. Kf1 {[%clk 0:01:25]} 31...
Kd7 {[%clk 0:00:55.9]} 32. Ne5+ {[%clk 0:01:23.4]} 32... Kd6 {[%clk 0:00:56.3]}
33. f4 {[%clk 0:01:18.2]} 33... f6 {[%clk 0:00:49.2]} 34. Ng6 {[%clk 0:01:14.8]}
34... Bf7 {[%clk 0:00:44.9]} 35. Nh4 {[%clk 0:01:12.8]} 35... g6 {[%clk
0:00:33.3]} 36. Ke2 {[%clk 0:01:11.5]} 36... Kc5 {[%clk 0:00:31.8]} 37. f5
{[%clk 0:01:06.1]} 37... g5 {[%clk 0:00:27.5]} 38. Ng6 {[%clk 0:01:04.6]} 38...
Kc4 {[%clk 0:00:20.2]} 39. Nh8 {[%clk 0:00:59.6]} 39... Bg8 {[%clk 0:00:19]} 40.
Ng6 {[%clk 0:00:59.2]} 40... b5 {[%clk 0:00:19.2]} 41. Ne7 {[%clk 0:00:58.6]}
41... Bf7 {[%clk 0:00:18.1]} 42. Nc6 {[%clk 0:00:58.1]} 42... a4 {[%clk
0:00:14.4]} 43. Nd8 {[%clk 0:00:54.6]} 43... Bg8 {[%clk 0:00:13.6]} 44. Ne6
{[%clk 0:00:49.4]} 44... Kb3 {[%clk 0:00:11.1]} 45. Nd4+ {[%clk 0:00:46.9]}
45... Kxa3 {[%clk 0:00:10.4]} 46. Nxb5+ {[%clk 0:00:47.1]} 46... Kb2 {[%clk
0:00:10.8]} 47. Kd2 {[%clk 0:00:46]} 47... a3 {[%clk 0:00:11.1]} 48. Nxa3 {[%clk
0:00:43.8]} 48... Kb3 {[%clk 0:00:11.2]} 49. Nb5 {[%clk 0:00:42.9]} 49... Kc4
{[%clk 0:00:11.3]} 50. Nd6+ {[%clk 0:00:42.7]} 50... Kd5 {[%clk 0:00:10.7]} 51.
Ne8 {[%clk 0:00:41.6]} 51... Ke5 {[%clk 0:00:09.8]} 52. g3 {[%clk 0:00:39.8]}
52... Bf7 {[%clk 0:00:08.4]} 53. Ng7 {[%clk 0:00:37.4]} 53... Bd5 {[%clk
0:00:05.8]} 54. h4 {[%clk 0:00:33.8]} 54... Bb7 {[%clk 0:00:04.6]} 55. Ke2
{[%clk 0:00:33.5]} 55... Bc8 {[%clk 0:00:04.9]} 56. hxg5 {[%clk 0:00:31.2]}
56... hxg5 {[%clk 0:00:04.7]} 57. g4 {[%clk 0:00:31.6]} 57... Ba6+ {[%clk
0:00:04.8]} 58. Kf2 {[%clk 0:00:31.6]} 58... Bc4 {[%clk 0:00:05.1]} 59. Nh5
{[%clk 0:00:30.5]} 59... Bb3 {[%clk 0:00:05.1]} 60. Kg3 {[%clk 0:00:30]} 60...
Bd1 {[%clk 0:00:05.2]} 61. Ng7 {[%clk 0:00:29.6]} 61... Bf3 {[%clk 0:00:05.3]}
62. Ne8 {[%clk 0:00:29]} 62... Be2 {[%clk 0:00:04.5]} 63. Nc7 {[%clk 0:00:28.5]}
63... Kd6 {[%clk 0:00:04.6]} 64. Ne8+ {[%clk 0:00:28.2]} 64... Ke7 {[%clk
0:00:05]} 65. Ng7 {[%clk 0:00:26.7]} 65... Kf7 {[%clk 0:00:05.4]} 66. Nh5 {[%clk
0:00:26.8]} 66... Bd1 {[%clk 0:00:04.1]} 67. Kh3 {[%clk 0:00:22.6]} 67... Be2
{[%clk 0:00:03.7]} 68. Ng3 {[%clk 0:00:22.4]} 68... Bf3 {[%clk 0:00:03.3]} 69.
Nf1 {[%clk 0:00:20.1]} 69... Ke7 {[%clk 0:00:03.6]} 70. Nd2 {[%clk 0:00:19.8]}
1-0

[Event "*** SCC Grand Prix: Titled Tuesday Blitz"]
[Site "Chess.com"]
[Date "2020.09.29"]
[Round "4"]
[White "kleopl"]
[Black "cassoulet"]
[Result "1-0"]
[WhiteElo "2470"]
[BlackElo "2632"]
[TimeControl "180+1"]
[EndTime "10:40:33 PDT"]
[Termination "kleopl won by checkmate"]

1. c4 {[%clk 0:03:00.9]} 1... e6 {[%clk 0:02:59.6]} 2. Nc3 {[%clk 0:03:00.4]}
2... Nf6 {[%clk 0:03:00.5]} 3. Nf3 {[%clk 0:02:55.1]} 3... d5 {[%clk 0:03:00.5]}
4. cxd5 {[%clk 0:02:53.9]} 4... exd5 {[%clk 0:03:00.2]} 5. d4 {[%clk 0:02:53.5]}
5... Bd6 {[%clk 0:02:59.9]} 6. Bg5 {[%clk 0:02:51.4]} 6... c6 {[%clk 0:03:00.1]}
7. e3 {[%clk 0:02:51.7]} 7... h6 {[%clk 0:03:00.1]} 8. Bh4 {[%clk 0:02:49.8]}
8... Bf5 {[%clk 0:02:58.2]} 9. Bd3 {[%clk 0:02:49.7]} 9... Bxd3 {[%clk
0:02:57.2]} 10. Qxd3 {[%clk 0:02:50.6]} 10... Nbd7 {[%clk 0:02:57.8]} 11. O-O
{[%clk 0:02:50.3]} 11... O-O {[%clk 0:02:57.3]} 12. Rab1 {[%clk 0:02:50.4]}
12... a5 {[%clk 0:02:56.8]} 13. a3 {[%clk 0:02:49]} 13... Qe7 {[%clk 0:02:56.7]}
14. Rfc1 {[%clk 0:02:43.6]} 14... Rfe8 {[%clk 0:02:56.1]} 15. Bg3 {[%clk
0:02:33.7]} 15... Ne4 {[%clk 0:02:52.4]} 16. Bxd6 {[%clk 0:02:31]} 16... Nxd6
{[%clk 0:02:53.3]} 17. Nd2 {[%clk 0:02:26.4]} 17... Nf6 {[%clk 0:02:43.7]} 18.
Ne2 {[%clk 0:02:22.7]} 18... Nfe4 {[%clk 0:02:42.7]} 19. Ng3 {[%clk 0:02:18.3]}
19... Qh4 {[%clk 0:02:35.4]} 20. Ndxe4 {[%clk 0:02:07.4]} 20... dxe4 {[%clk
0:02:33.8]} 21. Qe2 {[%clk 0:02:04.6]} 21... g6 {[%clk 0:02:27.9]} 22. b4 {[%clk
0:02:03.4]} 22... axb4 {[%clk 0:02:27.2]} 23. axb4 {[%clk 0:02:04.3]} 23... Ra3
{[%clk 0:02:24.4]} 24. Rd1 {[%clk 0:00:57.7]} 24... Qg5 {[%clk 0:02:19.8]} 25.
Rdc1 {[%clk 0:00:52.6]} 25... Rea8 {[%clk 0:02:14.9]} 26. Rc5 {[%clk 0:00:50.9]}
26... Qf6 {[%clk 0:02:07.6]} 27. d5 {[%clk 0:00:49.6]} 27... Ra2 {[%clk
0:02:05.5]} 28. Qf1 {[%clk 0:00:46.2]} 28... Ra1 {[%clk 0:01:46.7]} 29. Rxa1
{[%clk 0:00:34.7]} 29... Rxa1 {[%clk 0:01:45.6]} 30. Rc1 {[%clk 0:00:35.2]}
30... Rxc1 {[%clk 0:01:45]} 31. Qxc1 {[%clk 0:00:36.1]} 31... cxd5 {[%clk
0:01:45.7]} 32. Qc5 {[%clk 0:00:24.1]} 32... Qe5 {[%clk 0:01:30.1]} 33. h3
{[%clk 0:00:23.6]} 33... h5 {[%clk 0:01:29]} 34. Ne2 {[%clk 0:00:23]} 34... Kg7
{[%clk 0:01:00]} 35. Nf4 {[%clk 0:00:21.8]} 35... Nc4 {[%clk 0:00:49.3]} 36.
Qxd5 {[%clk 0:00:20.1]} 36... Qxd5 {[%clk 0:00:47.8]} 37. Nxd5 {[%clk
0:00:19.7]} 37... f5 {[%clk 0:00:44.3]} 38. Kf1 {[%clk 0:00:19.6]} 38... Kf7
{[%clk 0:00:44.3]} 39. Ke2 {[%clk 0:00:19.3]} 39... Ke6 {[%clk 0:00:44.3]} 40.
Nf4+ {[%clk 0:00:19.6]} 40... Kf6 {[%clk 0:00:44]} 41. h4 {[%clk 0:00:20.1]}
41... Ne5 {[%clk 0:00:43]} 42. g3 {[%clk 0:00:14.2]} 42... Ke7 {[%clk
0:00:42.9]} 43. Kd2 {[%clk 0:00:12.9]} 43... Kd6 {[%clk 0:00:43.2]} 44. Kc3
{[%clk 0:00:11.2]} 44... Ng4 {[%clk 0:00:35]} 45. Nh3 {[%clk 0:00:06.6]} 45...
Kd5 {[%clk 0:00:30.5]} 46. Nf4+ {[%clk 0:00:06.4]} 46... Ke5 {[%clk 0:00:30.5]}
47. Nxg6+ {[%clk 0:00:04.2]} 47... Kd6 {[%clk 0:00:21.7]} 48. Nf4 {[%clk
0:00:05.1]} 48... Nxf2 {[%clk 0:00:21.9]} 49. Nxh5 {[%clk 0:00:05.1]} 49... Ng4
{[%clk 0:00:22.8]} 50. Kd4 {[%clk 0:00:04.7]} 50... Ne5 {[%clk 0:00:20.9]} 51.
Ng7 {[%clk 0:00:04.6]} 51... Nc6+ {[%clk 0:00:21.1]} 52. Kc4 {[%clk 0:00:04.9]}
52... Ke5 {[%clk 0:00:22]} 53. h5 {[%clk 0:00:04.5]} 53... Kf6 {[%clk
0:00:22.5]} 54. h6 {[%clk 0:00:05]} 54... Ne5+ {[%clk 0:00:22.7]} 55. Kd5 {[%clk
0:00:03.1]} 55... Ng4 {[%clk 0:00:22.4]} 56. Kd4 {[%clk 0:00:03.2]} 56... Nxh6
{[%clk 0:00:21.9]} 57. Ne8+ {[%clk 0:00:03.6]} 57... Kg5 {[%clk 0:00:21.9]} 58.
Nd6 {[%clk 0:00:03.6]} 58... b6 {[%clk 0:00:22.3]} 59. Nc8 {[%clk 0:00:03.7]}
59... b5 {[%clk 0:00:20.4]} 60. Nd6 {[%clk 0:00:04]} 60... Kg4 {[%clk
0:00:21.3]} 61. Nxb5 {[%clk 0:00:04.1]} 61... Kxg3 {[%clk 0:00:21.8]} 62. Nd6
{[%clk 0:00:04.4]} 62... Kf3 {[%clk 0:00:20]} 63. b5 {[%clk 0:00:04.2]} 63... f4
{[%clk 0:00:18.9]} 64. Nxe4 {[%clk 0:00:04.3]} 64... fxe3 {[%clk 0:00:18.8]} 65.
Nc3 {[%clk 0:00:04.6]} 65... Nf5+ {[%clk 0:00:18.2]} 66. Kc5 {[%clk 0:00:04.1]}
66... Ng3 {[%clk 0:00:15.4]} 67. b6 {[%clk 0:00:04.3]} 67... Ne4+ {[%clk
0:00:15.6]} 68. Nxe4 {[%clk 0:00:04.4]} 68... Kxe4 {[%clk 0:00:16.5]} 69. b7
{[%clk 0:00:04.3]} 69... e2 {[%clk 0:00:16.6]} 70. b8=Q {[%clk 0:00:05.2]} 70...
Kd3 {[%clk 0:00:16.7]} 71. Qd6+ {[%clk 0:00:04.6]} 71... Kc2 {[%clk 0:00:16.8]}
72. Qe5 {[%clk 0:00:04.9]} 72... Kd1 {[%clk 0:00:17]} 73. Qd4+ {[%clk
0:00:05.2]} 73... Kc2 {[%clk 0:00:16.9]} 74. Qc4+ {[%clk 0:00:05.6]} 74... Kd2
{[%clk 0:00:17]} 75. Qd4+ {[%clk 0:00:06.1]} 75... Kc2 {[%clk 0:00:17.5]} 76.
Qe3 {[%clk 0:00:06.2]} 76... Kd1 {[%clk 0:00:17.7]} 77. Qd3+ {[%clk 0:00:06.7]}
77... Ke1 {[%clk 0:00:18.2]} 78. Kd4 {[%clk 0:00:07.1]} 78... Kf2 {[%clk
0:00:19.1]} 79. Qe3+ {[%clk 0:00:06.9]} 79... Kf1 {[%clk 0:00:19.5]} 80. Qf3+
{[%clk 0:00:07.2]} 80... Kg1 {[%clk 0:00:20.1]} 81. Qxe2 {[%clk 0:00:07.3]}
81... Kh1 {[%clk 0:00:19.9]} 82. Ke3 {[%clk 0:00:08.2]} 82... Kg1 {[%clk
0:00:20.8]} 83. Kf3 {[%clk 0:00:08.4]} 83... Kh1 {[%clk 0:00:21.7]} 84. Qg2#
{[%clk 0:00:08.6]} 1-0